fUST/lending_fUST_20240714
["ID","MTS","AMOUNT","RATE_DAILY","PERIOD"]
[331987770,1720924250139,-500.0,0.00025205,2]
[331987771,1720924250149,-500.0,0.00025205,2]
[331987772,1720924250159,-326.894773,0.00025205,7]
[331987773,1720924250171,-270.291851,0.00025205,7]
[331987774,1720924250180,-500.0,0.00025205,2]
[331987775,1720924250190,-244.63393812,0.00025205,2]
[331987776,1720924250199,-500.0,0.00025205,2]
[331987777,1720924250209,-500.0,0.00025205,2]
[331987778,1720924250218,-500.0,0.00025205,2]
[331987779,1720924250228,-278.022665,0.00025205,7]
[331987780,1720924250238,-500.0,0.00025205,2]
[331987781,1720924250247,-517.13948777,0.00025205,2]
[331987782,1720924250257,-278.022665,0.00025205,7]
[331987783,1720924250266,-500.0,0.00025205,2]
[331987784,1720924250276,-500.0,0.00025205,2]
[331987785,1720924250287,-500.0,0.00025205,2]
[331987786,1720924250297,-500.0,0.00025205,2]
[331987787,1720924250306,-500.0,0.00025205,2]
[331987788,1720924250316,-500.0,0.00025205,2]
[331987789,1720924250325,-500.0,0.00025205,2]
[331987790,1720924250335,-561.95671101,0.00025205,2]
[331987791,1720924250344,-151.0,0.00025205,7]
[331987792,1720924250354,-500.0,0.00025205,2]
[331987793,1720924250364,-151.0,0.00025205,4]
[331987794,1720924250373,-500.0,0.00025205,2]
[331987795,1720924250383,-500.0,0.00025205,2]
[331987796,1720924250392,-500.0,0.00025205,2]
[331987797,1720924250403,-500.0,0.00025205,2]
[331987798,1720924250416,-500.0,0.00025205,2]
[331987799,1720924250425,-500.0,0.00025205,2]
[331987800,1720924250435,-500.0,0.00025205,2]
[331987801,1720924250445,-1097.96,0.00025205,2]
[331987802,1720924250455,-880.27,0.00025205,2]
[331987803,1720924250465,-500.0,0.00025205,2]
[331987804,1720924250474,-500.0,0.00025205,2]
[331987805,1720924250484,-500.0,0.00025205,2]
[331987806,1720924250494,-500.0,0.00025205,2]
[331987807,1720924250504,-481.582522,0.00025205,7]
[331987808,1720924250514,-500.0,0.00025205,2]
[331987809,1720924250524,-481.582522,0.00025205,7]
[331987810,1720924250536,-500.0,0.00025205,2]
[331987811,1720924250546,-271.780153,0.00025205,7]
[331987812,1720924250555,-427.36840868,0.00025205,2]
[331987813,1720924250565,-500.0,0.00025205,2]
[331987814,1720924250575,-266.485533,0.00025205,7]
[331987815,1720924250585,-500.0,0.00025205,2]
[331987816,1720924250594,-366.11906,0.00025205,7]
[331987817,1720924250604,-266.485533,0.00025205,7]
[331987818,1720924250614,-500.0,0.00025205,2]
[331987819,1720924250623,-500.0,0.00025205,2]
[331987820,1720924250633,-500.0,0.00025205,2]
[331987821,1720924250643,-366.11906,0.00025205,7]
[331987822,1720924250652,-151.0,0.00025205,7]
[331987823,1720924250662,-152.303851,0.00025205,7]
[331987824,1720924250671,-500.0,0.00025205,2]
[331987825,1720924250681,-500.0,0.00025205,2]
[331987826,1720924250690,-500.0,0.00025205,2]
[331987827,1720924250700,-500.0,0.00025205,2]
[331987828,1720924250709,-500.0,0.00025205,2]
[331987829,1720924250720,-500.0,0.00025205,2]
[331987830,1720924250729,-545.839633,0.00025205,7]
[331987831,1720924250739,-500.0,0.00025205,2]
[331987832,1720924250748,-639.16,0.00025205,2]
[331987833,1720924250757,-500.0,0.00025205,2]
[331987834,1720924250767,-500.0,0.00025205,2]
[331987835,1720924250776,-545.839633,0.00025205,7]
[331987836,1720924250788,-500.0,0.00025205,2]
[331987837,1720924250798,-500.0,0.00025205,2]
[331987838,1720924250808,-151.0,0.00025205,7]
[331987839,1720924250817,-151.0,0.00025205,7]
[331987840,1720924250826,-500.0,0.00025205,2]
[331987841,1720924250835,-500.0,0.00025205,2]
[331987842,1720924250845,-500.0,0.00025205,2]
[331987843,1720924250854,-500.0,0.00025205,2]
[331987844,1720924250864,-151.0,0.00025205,7]
[331987845,1720924250873,-500.0,0.00025205,2]
[331987846,1720924250883,-500.0,0.00025205,2]
[331987847,1720924250892,-500.0,0.00025205,2]
[331987848,1720924250901,-500.0,0.00025205,2]
[331987849,1720924250911,-500.0,0.00025205,2]
[331987850,1720924250921,-500.0,0.00025205,2]
[331987851,1720924250931,-500.0,0.00025205,2]
[331987852,1720924250940,-2534.56,0.00025205,2]
[331987853,1720924250949,-500.0,0.00025205,2]
[331987854,1720924250959,-500.0,0.00025205,2]
[331987855,1720924250969,-500.0,0.00025205,2]
[331987856,1720924250978,-500.0,0.00025205,2]
[331987857,1720924250988,-595.80814767,0.00025205,2]
[331987858,1720924250998,-19488.08,0.00025205,2]
[331987859,1720924251008,-500.0,0.00025205,2]
[331987860,1720924251018,-500.0,0.00025205,2]
[331987861,1720924251027,-500.0,0.00025205,2]
[331987862,1720924251040,-151.012336,0.00025205,7]
[331987863,1720924251050,-500.0,0.00025205,2]
[331987864,1720924251060,-500.0,0.00025205,2]
[331987865,1720924251069,-151.0,0.00025205,7]
[331987866,1720924251079,-500.0,0.00025205,2]
[331987867,1720924251088,-500.0,0.00025205,2]
[331987868,1720924251098,-986.24,0.00025205,2]
[331987869,1720924251108,-500.0,0.00025205,2]
[331987870,1720924251117,-500.0,0.00025205,2]
[331987871,1720924251182,-500.0,0.00025205,2]
[331987872,1720924251192,-500.0,0.00025205,2]
[331987873,1720924251201,-500.0,0.00025205,2]
[331987874,1720924251210,-500.0,0.00025205,2]
[331987875,1720924251220,-537.58771121,0.00025205,2]
[331987876,1720924251230,-500.0,0.00025205,2]
[331987877,1720924251239,-500.0,0.00025205,2]
[331987878,1720924251249,-531.47231028,0.00025205,2]
[331987879,1720924251258,-500.0,0.00025205,2]
[331987880,1720924251268,-500.0,0.00025205,2]
[331987881,1720924251277,-500.0,0.00025205,2]
[331987882,1720924251287,-301.59758037,0.00025205,2]
[331987883,1720924251297,-500.0,0.00025205,2]
[331987884,1720924251307,-500.0,0.00025205,2]
[331987885,1720924251316,-544.45,0.00025205,2]
[331987886,1720924251327,-514.98486169,0.00025205,2]
[331987887,1720924251336,-500.0,0.00025205,2]
[331987888,1720924251345,-500.0,0.00025205,2]
[331987889,1720924251355,-1387.27,0.00025205,2]
[331987890,1720924251364,-500.0,0.00025205,2]
[331987891,1720924251374,-500.0,0.00025205,2]
[331987892,1720924251383,-500.0,0.00025205,2]
[331987893,1720924251393,-704.08324,0.00025205,7]
[331987894,1720924251403,-500.0,0.00025205,2]
[331987895,1720924251417,-500.0,0.00025205,2]
[331987896,1720924251426,-704.08324,0.00025205,7]
[331987897,1720924251435,-3570.82,0.00025205,2]
[331987898,1720924251447,-500.0,0.00025205,2]
[331987899,1720924251457,-500.0,0.00025205,2]
[331987900,1720924251467,-444.95068,0.00025205,7]
[331987901,1720924251477,-524.68836156,0.00025205,2]
[331987902,1720924251488,-500.0,0.00025205,2]
[331987903,1720924251498,-444.95068,0.00025205,7]
[331987904,1720924251508,-302.15405627,0.00025223,2]
[331987905,1720924251517,-364.18737546,0.00025242,2]
[331987906,1720924251527,-151.0,0.00025301,7]
[331987907,1720924251539,-207.962424,0.00025301,7]
[331987908,1720924251549,-151.0,0.00025301,7]
[331987909,1720924251560,-151.0,0.00025301,7]
[331987910,1720924251569,-173.7558,0.000254,2]
[331987911,1720924251579,-1017.314429,0.000254,2]
[331987912,1720924251588,-12078.9557128,0.00025469,3]
[331987913,1720924251598,-302.15405627,0.00025472,2]
[331987914,1720924251608,-2123.44630192,0.00025479,5]
[331987915,1720924251618,-548.75568131,0.00025479,2]
[331987916,1720924251628,-500.0,0.00025479,2]
[331987917,1720924251637,-500.0,0.00025479,2]
[331987918,1720924251647,-501.38631533,0.00025479,2]
[331987919,1720924251656,-500.0,0.00025479,2]
[331987920,1720924251666,-500.0,0.00025479,2]
[331987921,1720924251675,-500.0,0.00025479,2]
[331987922,1720924251685,-500.0,0.00025479,2]
[331987923,1720924251694,-500.0,0.00025479,2]
[331987924,1720924251704,-500.0,0.00025479,2]
[331987925,1720924251713,-1500.0,0.00025479,2]
[331987926,1720924251723,-500.0,0.00025479,2]
[331987927,1720924251733,-631.02158556,0.00025479,2]
[331987928,1720924251743,-153.098689,0.00025479,7]
[331987929,1720924251753,-500.0,0.00025479,2]
[331987930,1720924251762,-257.7015,0.00025479,7]
[331987931,1720924251771,-257.7015,0.00025479,7]
[331987932,1720924251781,-500.0,0.00025479,2]
[331987933,1720924251792,-151.0,0.00025479,7]
[331987934,1720924251802,-504.24395526,0.00025479,2]
[331987935,1720924251811,-155.351623,0.00025479,7]
[331987936,1720924251821,-500.0,0.00025479,2]
[331987937,1720924251832,-155.351623,0.00025479,7]
[331987938,1720924251841,-151.0,0.00025479,7]
[331987939,1720924251852,-1961.77,0.00025479,2]
[331987940,1720924251862,-151.0,0.00025479,7]
[331987941,1720924251871,-500.0,0.00025479,2]
[331987942,1720924251881,-500.0,0.00025479,2]
[331987943,1720924251890,-200.0,0.00025479,2]
[331987944,1720924251900,-500.0,0.00025479,2]
[331987945,1720924251909,-500.0,0.00025479,2]
[331987946,1720924251920,-500.0,0.00025479,2]
[331987947,1720924251930,-500.0,0.00025479,2]
[331987948,1720924251940,-500.0,0.00025479,2]
[331987949,1720924251949,-500.0,0.00025479,2]
[331987950,1720924251960,-846.09,0.00025479,2]
[331987951,1720924251970,-500.0,0.00025479,2]
[331987952,1720924251979,-500.0,0.00025479,2]
[331987953,1720924251990,-510.37350022,0.00025479,2]
[331987954,1720924251999,-500.0,0.00025479,2]
[331987955,1720924252009,-517.78410568,0.00025479,2]
[331987956,1720924252019,-500.0,0.00025479,2]
[331987957,1720924252029,-500.0,0.00025479,2]
[331987958,1720924252039,-368.095554,0.00025479,7]
[331987959,1720924252048,-500.0,0.00025479,2]
[331987960,1720924252057,-500.0,0.00025479,2]
[331987961,1720924252066,-368.095554,0.00025479,7]
[331987962,1720924252076,-500.0,0.00025479,2]
[331987963,1720924252086,-500.0,0.00025479,2]
[331987964,1720924252096,-508.93882594,0.00025479,2]
[331987965,1720924252105,-500.0,0.00025479,2]
[331987966,1720924252115,-500.0,0.00025479,2]
[331987967,1720924252124,-500.0,0.00025479,2]
[331987968,1720924252134,-500.0,0.00025479,2]
[331987969,1720924252143,-1321.72,0.00025479,2]
[331987970,1720924252153,-500.0,0.00025479,2]
[331987971,1720924252163,-500.0,0.00025479,2]
[331987972,1720924252173,-500.0,0.00025479,2]
[331987973,1720924252236,-643.57,0.00025479,2]
[331987974,1720924252246,-500.0,0.00025479,2]
[331987975,1720924252255,-515.00421685,0.00025479,2]
[331987976,1720924252264,-410.00172878,0.00025479,2]
[331987977,1720924252273,-500.0,0.00025479,2]
[331987978,1720924252282,-178.668643,0.00025479,7]
[331987979,1720924252293,-539.572539,0.00025479,7]
[331987980,1720924252302,-178.668643,0.00025479,7]
[331987981,1720924252311,-500.0,0.00025479,2]
[331987982,1720924252321,-539.572539,0.00025479,7]
[331987983,1720924252330,-500.0,0.00025479,2]
[331987984,1720924252339,-500.0,0.00025479,2]
[331987985,1720924252348,-500.0,0.00025479,2]
[331987986,1720924252358,-500.0,0.00025479,2]
[331987987,1720924252367,-441.81155593,0.00025479,2]
[331987988,1720924252377,-500.0,0.00025479,2]
[331987989,1720924252386,-151.0,0.00025479,2]
[331987990,1720924252395,-500.0,0.00025479,2]
[331987991,1720924252406,-500.0,0.00025479,2]
[331987992,1720924252418,-500.0,0.00025479,2]
[331987993,1720924252427,-500.0,0.00025479,2]
[331987994,1720924252436,-500.0,0.00025479,2]
[331987995,1720924252447,-500.0,0.00025479,2]
[331987996,1720924252456,-500.0,0.00025479,2]
[331987997,1720924252465,-151.0,0.00025479,7]
[331987998,1720924252475,-151.0,0.00025479,7]
[331987999,1720924252486,-500.0,0.00025479,2]
[331988000,1720924252495,-227.22690286,0.00025479,2]
[331988001,1720924252504,-500.0,0.00025479,2]
[331988002,1720924252514,-500.0,0.00025479,2]
[331988003,1720924252523,-500.0,0.00025479,2]
[331988004,1720924252532,-500.0,0.00025479,2]
[331988005,1720924252542,-500.0,0.00025479,2]
[331988006,1720924252551,-500.0,0.00025479,2]
[331988007,1720924252561,-500.0,0.00025479,2]
[331988008,1720924252570,-368.219954,0.00025479,7]
[331988009,1720924252580,-500.0,0.00025479,2]
[331988010,1720924252589,-460.59195565,0.00025479,2]
[331988011,1720924252599,-368.219954,0.00025479,7]
[331988012,1720924252609,-500.0,0.00025479,2]
[331988013,1720924252618,-500.0,0.00025479,2]
[331988014,1720924252628,-151.0,0.00025479,7]
[331988015,1720924252637,-151.0,0.00025479,7]
[331988016,1720924252647,-500.0,0.00025479,2]
[331988017,1720924252656,-662.68,0.00025479,2]
[331988018,1720924252666,-500.0,0.00025479,2]
[331988019,1720924252675,-533.86966622,0.00025479,2]
[331988020,1720924252684,-326.894773,0.00025479,7]
[331988021,1720924252693,-500.0,0.00025479,2]
[331988022,1720924252703,-151.0,0.00025479,7]
[331988023,1720924252713,-155.07072979,0.00025479,2]
[331988024,1720924252722,-326.894773,0.00025479,7]
[331988025,1720924252732,-473.47529606,0.00025479,2]
[331988026,1720924252742,-500.0,0.00025479,2]
[331988027,1720924252752,-500.0,0.00025479,2]
[331988028,1720924252761,-551.49030233,0.00025479,2]
[331988029,1720924252771,-278.022665,0.00025479,7]
[331988030,1720924252780,-500.0,0.00025479,2]
[331988031,1720924252791,-278.022665,0.00025479,7]
[331988032,1720924252800,-500.0,0.00025479,2]
[331988033,1720924252810,-500.0,0.00025479,2]
[331988034,1720924252819,-500.0,0.00025479,2]
[331988035,1720924252828,-500.0,0.00025479,2]
[331988036,1720924252838,-217.24736425,0.00025479,2]
[331988037,1720924252847,-500.0,0.00025479,2]
[331988038,1720924252857,-500.0,0.00025479,2]
[331988039,1720924252866,-151.0,0.00025479,4]
[331988040,1720924252876,-500.0,0.00025479,2]
[331988041,1720924252885,-500.0,0.00025479,2]
[331988042,1720924252894,-500.0,0.00025479,2]
[331988043,1720924252903,-500.0,0.00025479,2]
[331988044,1720924252913,-500.0,0.00025479,2]
[331988045,1720924252922,-500.0,0.00025479,2]
[331988046,1720924252931,-500.0,0.00025479,2]
[331988047,1720924252940,-1097.96,0.00025479,2]
[331988048,1720924252951,-880.27,0.00025479,2]
[331988049,1720924252960,-500.0,0.00025479,2]
[331988050,1720924252970,-523.1623969,0.00025479,2]
[331988051,1720924252979,-500.0,0.00025479,2]
[331988052,1720924252988,-481.582522,0.00025479,7]
[331988053,1720924252997,-500.0,0.00025479,2]
[331988054,1720924253007,-481.582522,0.00025479,7]
[331988055,1720924253016,-500.0,0.00025479,2]
[331988056,1720924253027,-509.014776,0.00025479,2]
[331988057,1720924253039,-266.485533,0.00025479,7]
[331988058,1720924253048,-500.0,0.00025479,2]
[331988059,1720924253057,-366.11906,0.00025479,7]
[331988060,1720924253067,-266.485533,0.00025479,7]
[331988061,1720924253076,-472.1037636,0.00025479,2]
[331988062,1720924253085,-500.0,0.00025479,2]
[331988063,1720924253095,-500.0,0.00025479,2]
[331988064,1720924253105,-366.11906,0.00025479,7]
[331988065,1720924253115,-500.0,0.00025479,2]
[331988066,1720924253175,-500.0,0.00025479,2]
[331988067,1720924253185,-500.0,0.00025479,2]
[331988068,1720924253195,-500.0,0.00025479,2]
[331988069,1720924253204,-500.0,0.00025479,2]
[331988070,1720924253214,-545.839633,0.00025479,7]
[331988071,1720924253223,-500.0,0.00025479,2]
[331988072,1720924253233,-639.16,0.00025479,2]
[331988073,1720924253242,-500.0,0.00025479,2]
[331988074,1720924253252,-500.0,0.00025479,2]
[331988075,1720924253262,-545.839633,0.00025479,7]
[331988076,1720924253271,-500.0,0.00025479,2]
[331988077,1720924253280,-500.0,0.00025479,2]
[331988078,1720924253292,-151.0,0.00025479,7]
[331988079,1720924253301,-500.0,0.00025479,2]
[331988080,1720924253310,-500.0,0.00025479,2]
[331988081,1720924253323,-500.0,0.00025479,2]
[331988082,1720924253332,-500.0,0.00025479,2]
[331988083,1720924253341,-152.765725,0.00025479,7]
[331988084,1720924253350,-500.0,0.00025479,2]
[331988085,1720924253358,-500.0,0.00025479,2]
[331988086,1720924253367,-500.0,0.00025479,2]
[331988087,1720924253377,-500.0,0.00025479,2]
[331988088,1720924253386,-500.0,0.00025479,2]
[331988089,1720924253395,-500.0,0.00025479,2]
[331988090,1720924253408,-500.0,0.00025479,2]
[331988091,1720924253417,-2534.56,0.00025479,2]
[331988092,1720924253427,-500.0,0.00025479,2]
[331988093,1720924253436,-500.0,0.00025479,2]
[331988094,1720924253447,-500.0,0.00025479,2]
[331988095,1720924253457,-500.0,0.00025479,2]
[331988096,1720924253467,-19352.15909711,0.00025479,2]
[331988099,1720924349770,750.0,0.00021096,2]
[331988100,1720924355476,273.37336231,9.9e-05,2]
[331988107,1720924892477,462.92894297,0.00012,2]
[331988108,1720924892523,158.87797589,0.00012,2]
[331988109,1720924892576,277.97422777,0.00012,2]
[331988110,1720924892623,247.84263134,0.00012,2]
[331988112,1720925227138,-3735.78617356,0.000179,2]
[331988113,1720925227167,-287.26261445,0.00018,2]
[331988114,1720925227194,-1066.36077455,0.0002,2]
[331988115,1720925227221,-154.66393077,0.0002,2]
[331988116,1720925227249,-179.26838754,0.0002,2]
[331988117,1720925227275,-162.130558,0.00020964,2]
[331988118,1720925227302,-285.0,0.00021095,2]
[331988119,1720925227328,-321.320696,0.00021096,2]
[331988120,1720925227356,-300.0,0.00022297,2]
[331988121,1720925227381,-300.0,0.00022297,2]
[331988122,1720925227532,-4038.04660104,0.00022305,2]
[331988123,1720925235154,-500.0,0.00022305,2]
[331988124,1720925246104,-843.65021424,0.00022305,2]
[331988125,1720925248100,-5216.12112546,0.00022305,2]
[331988126,1720925347100,-1452.22550264,0.00020205,2]
[331988127,1720925347122,-167.493661,0.0002221,2]
[331988128,1720925347145,-300.0,0.00022304,2]
[331988129,1720925347167,-300.0,0.00022304,2]
[331988130,1720925347194,-12883.8113433,0.00022305,2]
[331988131,1720925347227,-212.564619,0.00022305,2]
[331988132,1720925359627,294.0,0.00022,2]
[331988184,1720925438138,-308.49050758,0.00022205,2]
[331988185,1720925438153,-1205.80609696,0.00022305,2]
[331988186,1720925438167,-764.58301536,0.00022305,2]
[331988187,1720925438181,-266.68929733,0.00022305,2]
[331988188,1720925438196,-250.0,0.00022482,2]
[331988189,1720925438211,-283.2158687,0.00022609,2]
[331988190,1720925438222,-160.427436,0.00022764,2]
[331988191,1720925438235,-300.0,0.0002294,2]
[331988192,1720925438246,-300.0,0.0002294,2]
[331988193,1720925438259,-5049.45445946,0.00022941,2]
[331988194,1720925438272,-167.493661,0.00022967,2]
[331988195,1720925438286,-160.427436,0.00023001,2]
[331988196,1720925438299,-160.427436,0.00023238,2]
[331988197,1720925438311,-160.427436,0.00023475,2]
[331988198,1720925438326,-160.427436,0.00023713,2]
[331988199,1720925438338,-167.493661,0.00023724,2]
[331988200,1720925438353,-160.427436,0.0002395,2]
[331988201,1720925438366,-161.736775,0.0002404,2]
[331988202,1720925438378,-167.493661,0.00024481,2]
[331988203,1720925438390,-834.12840192,0.00024556,2]
[331988204,1720925438404,-3853.44138912,0.00024557,2]
[331988205,1720925438417,-7247.37342764,0.00024647,3]
[331988206,1720925438430,-318.66284375,0.00024656,2]
[331988207,1720925438442,-372.40185314,0.00024656,2]
[331988208,1720925438456,-500.0,0.00024656,2]
[331988209,1720925438467,-507.31924973,0.00024656,2]
[331988210,1720925438479,-500.0,0.00024656,2]
[331988211,1720925438491,-229.93362594,0.00024656,2]
[331988212,1720925438503,-500.0,0.00024657,2]
[331988213,1720925438515,-500.0,0.00024657,2]
[331988214,1720925438529,-500.0,0.00024657,2]
[331988215,1720925438541,-500.0,0.00024657,2]
[331988216,1720925438553,-500.0,0.00024657,2]
[331988217,1720925438565,-189.67685876,0.00024657,2]
[331988218,1720925438577,-500.0,0.00024657,2]
[331988219,1720925438588,-500.0,0.00024657,2]
[331988220,1720925438599,-1101.43,0.00024657,2]
[331988221,1720925438611,-507.16661374,0.00024657,2]
[331988222,1720925438623,-500.0,0.00024657,2]
[331988223,1720925438635,-500.0,0.00024657,2]
[331988224,1720925438647,-500.0,0.00024657,2]
[331988225,1720925438659,-500.0,0.00024657,2]
[331988226,1720925438671,-500.0,0.00024657,2]
[331988227,1720925438683,-600.48941339,0.00024657,2]
[331988228,1720925438697,-507.58108409,0.00024657,2]
[331988229,1720925438708,-500.0,0.00024657,2]
[331988230,1720925438719,-500.0,0.00024657,2]
[331988231,1720925438730,-500.0,0.00024657,2]
[331988232,1720925438741,-500.0,0.00024657,2]
[331988233,1720925438753,-500.0,0.00024657,2]
[331988234,1720925438766,-500.0,0.00024657,2]
[331988235,1720925438783,-500.0,0.00024657,2]
[331988236,1720925438795,-500.0,0.00024657,2]
[331988237,1720925438807,-504.38836669,0.00024657,2]
[331988238,1720925438820,-500.0,0.00024657,2]
[331988239,1720925438832,-286.49385376,0.00024657,2]
[331988240,1720925438843,-510.2530702,0.00024657,2]
[331988241,1720925438858,-500.0,0.00024657,2]
[331988242,1720925438871,-502.73552157,0.00024657,2]
[331988243,1720925438883,-504.84724113,0.00024657,2]
[331988244,1720925438894,-500.0,0.00024657,2]
[331988245,1720925438906,-500.0,0.00024657,2]
[331988246,1720925438917,-500.0,0.00024657,2]
[331988247,1720925439061,-500.0,0.00024657,2]
[331988248,1720925439071,-500.0,0.00024657,2]
[331988249,1720925439082,-500.0,0.00024657,2]
[331988250,1720925439092,-500.0,0.00024657,2]
[331988251,1720925439102,-500.0,0.00024657,2]
[331988252,1720925439111,-500.0,0.00024657,2]
[331988253,1720925439121,-500.0,0.00024657,2]
[331988254,1720925439132,-500.0,0.00024657,2]
[331988255,1720925439142,-500.0,0.00024657,2]
[331988256,1720925439152,-500.0,0.00024657,2]
[331988257,1720925439162,-509.13,0.00024657,2]
[331988258,1720925439172,-507.93933676,0.00024657,2]
[331988259,1720925439182,-500.0,0.00024657,2]
[331988260,1720925439193,-500.0,0.00024657,2]
[331988261,1720925439203,-500.0,0.00024657,2]
[331988262,1720925439213,-505.92926757,0.00024657,2]
[331988263,1720925439223,-500.0,0.00024657,2]
[331988264,1720925439233,-505.86172795,0.00024657,2]
[331988265,1720925439242,-500.0,0.00024657,2]
[331988266,1720925439252,-500.41774075,0.00024657,2]
[331988267,1720925439261,-500.0,0.00024657,2]
[331988268,1720925439271,-500.0,0.00024657,2]
[331988269,1720925439286,-500.0,0.00024657,2]
[331988270,1720925439295,-515.11281097,0.00024657,2]
[331988271,1720925439305,-500.0,0.00024657,2]
[331988272,1720925439315,-502.77899166,0.00024657,2]
[331988273,1720925439324,-506.65033317,0.00024657,2]
[331988274,1720925439333,-500.0,0.00024657,2]
[331988275,1720925439342,-500.0,0.00024657,2]
[331988276,1720925439352,-500.0,0.00024657,2]
[331988277,1720925439362,-502.12198042,0.00024657,2]
[331988278,1720925439371,-500.0,0.00024657,2]
[331988279,1720925439381,-500.0,0.00024657,2]
[331988280,1720925439391,-500.0,0.00024657,2]
[331988281,1720925439400,-500.0,0.00024657,2]
[331988282,1720925439410,-500.0,0.00024657,2]
[331988283,1720925439420,-503.80074372,0.00024657,2]
[331988284,1720925439429,-500.0,0.00024657,2]
[331988285,1720925439438,-500.0,0.00024657,2]
[331988286,1720925439448,-541.53871979,0.00024657,2]
[331988287,1720925439458,-500.0,0.00024657,2]
[331988288,1720925439467,-500.0,0.00024657,2]
[331988289,1720925439476,-505.32822103,0.00024657,2]
[331988290,1720925439485,-500.0,0.00024657,2]
[331988291,1720925439495,-500.0,0.00024657,2]
[331988292,1720925439505,-504.56228868,0.00024657,2]
[331988293,1720925439513,-500.0,0.00024657,2]
[331988294,1720925439522,-501.6481814,0.00024657,2]
[331988295,1720925439534,-516.91087296,0.00024657,2]
[331988296,1720925439543,-500.0,0.00024657,2]
[331988297,1720925439552,-305.42164865,0.00024657,2]
[331988298,1720925439561,-500.0,0.00024657,2]
[331988299,1720925439571,-500.0,0.00024657,2]
[331988300,1720925439580,-500.0,0.00024657,2]
[331988301,1720925439589,-500.0,0.00024657,2]
[331988302,1720925439599,-500.0,0.00024657,2]
[331988303,1720925439608,-500.0,0.00024657,2]
[331988304,1720925439617,-500.0,0.00024657,2]
[331988305,1720925439627,-533.91216663,0.00024657,2]
[331988306,1720925439637,-500.0,0.00024657,2]
[331988307,1720925439646,-563.44373523,0.00024657,2]
[331988308,1720925439655,-500.0,0.00024657,2]
[331988309,1720925439664,-500.0,0.00024657,2]
[331988311,1720925439674,-500.0,0.00024657,2]
[331988313,1720925439683,-500.0,0.00024657,2]
[331988315,1720925439693,-500.0,0.00024657,2]
[331988317,1720925439702,-533.72740921,0.00024657,2]
[331988319,1720925439711,-500.0,0.00024657,2]
[331988321,1720925439720,-500.0,0.00024657,2]
[331988322,1720925439730,-500.0,0.00024657,2]
[331988323,1720925439739,-434.08773143,0.00024657,2]
[331988324,1720925439748,-500.0,0.00024657,2]
[331988325,1720925439757,-500.0,0.00024657,2]
[331988326,1720925439769,-500.0,0.00024657,2]
[331988327,1720925439782,-500.0,0.00024657,2]
[331988328,1720925439791,-500.0,0.00024657,2]
[331988329,1720925439803,-500.0,0.00024657,2]
[331988330,1720925439814,-500.0,0.00024657,2]
[331988331,1720925439823,-500.0,0.00024657,2]
[331988332,1720925439833,-500.0,0.00024657,2]
[331988333,1720925439843,-500.0,0.00024657,2]
[331988334,1720925439852,-500.0,0.00024657,2]
[331988335,1720925439861,-500.0,0.00024657,2]